[Event "Late Titled Tuesday Blitz February 8 2022"]
[White "Triapishko, Alexandr"]
[Black "Sargsyan, Anna M."]
[WhiteFideId "14122286"]
[BlackFideId "13308130"]
[WhiteElo "2479"]
[BlackElo "2271"]
[Result "1/2-1/2"]
[Round "10"]
[TimeControl "180+1"]
[Date "2022.02.08"]
[WhiteClock "0:00:07"]
[BlackClock "0:00:16"]

1. e4 {[%clk 0:03:00]}  e5 {[%clk 0:02:58]} 2. Nf3 {[%clk 0:02:58]}  Nc6 {[%clk 0:02:59]} 3. Bb5 {[%clk 0:02:57]}  a6 {[%clk 0:03:00]} 4. Ba4 {[%clk 0:02:58]}  Nf6 {[%clk 0:03:00]} 5. O-O {[%clk 0:02:58]}  Nxe4 {[%clk 0:03:00]} 6. d4 {[%clk 0:02:57]}  b5 {[%clk 0:03:00]} 7. Bb3 {[%clk 0:02:58]}  d5 {[%clk 0:03:01]} 8. dxe5 {[%clk 0:02:58]}  Be6 {[%clk 0:03:02]} 9. Nbd2 {[%clk 0:02:57]}  Be7 {[%clk 0:03:01]} 10. c3 {[%clk 0:02:58]}  O-O {[%clk 0:03:01]} 11. Bc2 {[%clk 0:02:58]}  f5 {[%clk 0:03:02]} 12. exf6 {[%clk 0:02:58]}  Nxf6 {[%clk 0:03:01]} 13. Re1 {[%clk 0:02:59]}  Bg4 {[%clk 0:03:01]} 14. Nf1 {[%clk 0:02:56]}  Bc5 {[%clk 0:02:53]} 15. h3 {[%clk 0:02:55]}  Bxf3 {[%clk 0:02:34]} 16. gxf3 {[%clk 0:02:54]}  Qd7 {[%clk 0:02:30]} 17. Kg2 {[%clk 0:02:53]}  Nh5 {[%clk 0:02:10]} 18. b4 {[%clk 0:02:39]}  Bb6 {[%clk 0:01:53]} 19. a4 {[%clk 0:02:39]}  Rad8 {[%clk 0:01:49]} 20. Ng3 {[%clk 0:02:33]}  Nf4+ {[%clk 0:01:30]} 21. Bxf4 {[%clk 0:02:31]}  Rxf4 {[%clk 0:01:31]} 22. axb5 {[%clk 0:02:24]}  axb5 {[%clk 0:01:32]} 23. Qd3 {[%clk 0:02:24]}  g6 {[%clk 0:01:29]} 24. Rad1 {[%clk 0:02:05]}  Qg7 {[%clk 0:01:18]} 25. Ne2 {[%clk 0:01:46]}  Ne5 {[%clk 0:01:14]} 26. Qxb5 {[%clk 0:01:24]}  Rxf3 {[%clk 0:01:13]} 27. Nd4 {[%clk 0:01:24]}  Qf6 {[%clk 0:01:14]} 28. Qe2 {[%clk 0:01:15]}  Qg5+ {[%clk 0:01:10]} 29. Kh2 {[%clk 0:01:07]}  Rdf8 {[%clk 0:01:00]} 30. Rf1 {[%clk 0:01:01]}  Qf4+ {[%clk 0:00:53]} 31. Kg2 {[%clk 0:00:59]}  Qg5+ {[%clk 0:00:50]} 32. Kh2 {[%clk 0:01:00]}  R3f6 {[%clk 0:00:39]} 33. f4 {[%clk 0:00:38]}  Rxf4 {[%clk 0:00:38]} 34. Ne6 {[%clk 0:00:38]}  Rxf1 {[%clk 0:00:36]} 35. Rxf1 {[%clk 0:00:36]}  Rxf1 {[%clk 0:00:09]} 36. Nxg5 {[%clk 0:00:25]}  Rf2+ {[%clk 0:00:09]} 37. Qxf2 {[%clk 0:00:26]}  Bxf2 {[%clk 0:00:10]} 38. Bb3 {[%clk 0:00:24]}  c6 {[%clk 0:00:10]} 39. b5 {[%clk 0:00:25]}  cxb5 {[%clk 0:00:10]} 40. Bxd5+ {[%clk 0:00:25]}  Kg7 {[%clk 0:00:11]} 41. Kg2 {[%clk 0:00:23]}  Be1 {[%clk 0:00:11]} 42. Ne4 {[%clk 0:00:24]}  h5 {[%clk 0:00:10]} 43. Be6 {[%clk 0:00:18]}  b4 {[%clk 0:00:10]} 44. cxb4 {[%clk 0:00:17]}  Bxb4 {[%clk 0:00:11]} 45. Ba2 {[%clk 0:00:15]}  Be7 {[%clk 0:00:11]} 46. Nf2 {[%clk 0:00:12]}  g5 {[%clk 0:00:12]} 47. Bd5 {[%clk 0:00:11]}  Kh6 {[%clk 0:00:12]} 48. Bf3 {[%clk 0:00:10]}  Ng6 {[%clk 0:00:13]} 49. Nd3 {[%clk 0:00:07]}  Nh4+ {[%clk 0:00:14]} 50. Kf2 {[%clk 0:00:08]}  Bd6 {[%clk 0:00:13]} 51. Be2 {[%clk 0:00:08]}  Bc7 {[%clk 0:00:13]} 52. Kf1 {[%clk 0:00:08]}  Kg6 {[%clk 0:00:13]} 53. Nf2 {[%clk 0:00:07]}  Bg3 {[%clk 0:00:12]} 54. Bd3+ {[%clk 0:00:07]}  Kh6 {[%clk 0:00:12]} 55. Ne4 {[%clk 0:00:08]}  Bf4 {[%clk 0:00:12]} 56. Nf6 {[%clk 0:00:07]}  Ng6 {[%clk 0:00:12]} 57. Bxg6 {[%clk 0:00:04]}  Kxg6 {[%clk 0:00:13]} 58. Ne4 {[%clk 0:00:05]}  Kf5 {[%clk 0:00:14]} 59. Nf2 {[%clk 0:00:05]}  Ke5 {[%clk 0:00:14]} 60. Kg2 {[%clk 0:00:04]}  Kd4 {[%clk 0:00:15]} 61. Kf3 {[%clk 0:00:04]}  Be3 {[%clk 0:00:15]} 62. Ne4 {[%clk 0:00:04]}  Bf4 {[%clk 0:00:15]} 63. Nf6 {[%clk 0:00:04]}  g4+ {[%clk 0:00:14]} 64. Kxf4 {[%clk 0:00:03]}  gxh3 {[%clk 0:00:14]} 65. Nxh5 {[%clk 0:00:03]}  h2 {[%clk 0:00:15]} 66. Ng3 {[%clk 0:00:04]}  Kd3 {[%clk 0:00:16]} 67. Nh1 {[%clk 0:00:05]}  Ke2 {[%clk 0:00:16]} 68. Kg3 {[%clk 0:00:06]}  Kf1 {[%clk 0:00:16]} 69. Kxh2 {[%clk 0:00:07]} 1/2-1/2


[Site "https://www.chess.com"]

[Event "Late Titled Tuesday Blitz February 8 2022"]
[White "Vusatiuk, Vladimir"]
[Black "Golubka, Petro"]
[WhiteFideId "14118610"]
[BlackFideId "14114224"]
[WhiteElo "2157"]
[BlackElo "2392"]
[Result "0-1"]
[Round "10"]
[TimeControl "180+1"]
[Date "2022.02.09"]
[WhiteClock "0:00:02"]
[BlackClock "0:01:08"]

1. a3 {[%clk 0:03:00]}  a6 {[%clk 0:02:59]} 2. h3 {[%clk 0:02:59]}  h6 {[%clk 0:02:58]} 3. Nf3 {[%clk 0:02:58]}  Nf6 {[%clk 0:02:57]} 4. g4 {[%clk 0:02:54]}  b5 {[%clk 0:02:57]} 5. Bg2 {[%clk 0:02:53]}  Bb7 {[%clk 0:02:58]} 6. d3 {[%clk 0:02:48]}  e5 {[%clk 0:02:56]} 7. O-O {[%clk 0:02:44]}  d6 {[%clk 0:02:56]} 8. Nc3 {[%clk 0:02:39]}  Be7 {[%clk 0:02:52]} 9. e4 {[%clk 0:02:37]}  Nbd7 {[%clk 0:02:51]} 10. Nh2 {[%clk 0:02:09]}  h5 {[%clk 0:02:46]} 11. g5 {[%clk 0:02:05]}  Nh7 {[%clk 0:02:46]} 12. h4 {[%clk 0:01:54]}  Nhf8 {[%clk 0:02:46]} 13. f4 {[%clk 0:01:52]}  Ng6 {[%clk 0:02:44]} 14. fxe5 {[%clk 0:01:21]}  Nxh4 {[%clk 0:02:37]} 15. exd6 {[%clk 0:01:10]}  Bxg5 {[%clk 0:02:20]} 16. dxc7 {[%clk 0:01:06]}  Qxc7 {[%clk 0:02:18]} 17. Bxg5 {[%clk 0:00:53]}  Qc5+ {[%clk 0:02:17]} 18. Kh1 {[%clk 0:00:41]}  Qxg5 {[%clk 0:02:16]} 19. Bh3 {[%clk 0:00:35]}  Ne5 {[%clk 0:02:11]} 20. Rg1 {[%clk 0:00:31]}  Qe3 {[%clk 0:02:01]} 21. Qf1 {[%clk 0:00:31]}  Rd8 {[%clk 0:01:47]} 22. Re1 {[%clk 0:00:25]}  Qh6 {[%clk 0:01:43]} 23. Qf2 {[%clk 0:00:20]}  g5 {[%clk 0:01:38]} 24. Ref1 {[%clk 0:00:13]}  Rh7 {[%clk 0:01:29]} 25. Qf6 {[%clk 0:00:12]}  Qxf6 {[%clk 0:01:28]} 26. Rxf6 {[%clk 0:00:13]}  g4 {[%clk 0:01:28]} 27. Bf1 {[%clk 0:00:13]}  Bc6 {[%clk 0:01:23]} 28. Ne2 {[%clk 0:00:11]}  Ke7 {[%clk 0:01:22]} 29. Rf2 {[%clk 0:00:08]}  Nhf3 {[%clk 0:01:20]} 30. Nxf3 {[%clk 0:00:05]}  Nxf3 {[%clk 0:01:21]} 31. Rg3 {[%clk 0:00:05]}  Ne5 {[%clk 0:01:15]} 32. Rg1 {[%clk 0:00:02]}  h4 {[%clk 0:01:11]} 33. Nf4 {[%clk 0:00:01]}  g3 {[%clk 0:01:10]} 34. Rd2 {[%clk 0:00:01]}  f5 {[%clk 0:01:09]} 35. Bg2 {[%clk 0:00:01]}  fxe4 {[%clk 0:01:09]} 36. Bxe4 {[%clk 0:00:02]}  Bxe4+ {[%clk 0:01:08]} 37. dxe4 {[%clk 0:00:02]}  Rxd2 {[%clk 0:01:08]} 0-1


[Site "https://www.chess.com"]

[Event "Late Titled Tuesday Blitz February 8 2022"]
[White "Wachinger, Guenther"]
[Black "Kim, Sergey"]
[WhiteFideId "4604261"]
[BlackFideId "13700570"]
[WhiteElo "2212"]
[BlackElo "2613"]
[Result "1/2-1/2"]
[Round "10"]
[TimeControl "180+1"]
[Date "2022.02.09"]
[WhiteClock "0:00:13"]
[BlackClock "0:00:16"]

1. e4 {[%clk 0:03:00]}  e5 {[%clk 0:02:59]} 2. Nf3 {[%clk 0:02:53]}  Nc6 {[%clk 0:02:59]} 3. Nc3 {[%clk 0:02:53]}  Nf6 {[%clk 0:02:59]} 4. a3 {[%clk 0:02:54]}  g6 {[%clk 0:02:58]} 5. Bc4 {[%clk 0:02:53]}  Bg7 {[%clk 0:02:58]} 6. O-O {[%clk 0:02:53]}  O-O {[%clk 0:02:58]} 7. d3 {[%clk 0:02:53]}  d6 {[%clk 0:02:58]} 8. Ba2 {[%clk 0:02:53]}  h6 {[%clk 0:02:56]} 9. Re1 {[%clk 0:02:53]}  Nh5 {[%clk 0:02:53]} 10. Be3 {[%clk 0:02:48]}  Kh7 {[%clk 0:02:52]} 11. d4 {[%clk 0:02:48]}  exd4 {[%clk 0:02:49]} 12. Nxd4 {[%clk 0:02:48]}  Ne5 {[%clk 0:02:49]} 13. h3 {[%clk 0:02:46]}  c6 {[%clk 0:02:46]} 14. f4 {[%clk 0:02:39]}  Nd7 {[%clk 0:02:46]} 15. Qf3 {[%clk 0:02:38]}  Qh4 {[%clk 0:02:35]} 16. Rad1 {[%clk 0:02:34]}  Nc5 {[%clk 0:02:21]} 17. b4 {[%clk 0:02:08]}  Ne6 {[%clk 0:02:17]} 18. Nxe6 {[%clk 0:02:08]}  Bxe6 {[%clk 0:02:16]} 19. Bxe6 {[%clk 0:02:05]}  fxe6 {[%clk 0:02:16]} 20. Ne2 {[%clk 0:02:05]}  d5 {[%clk 0:02:11]} 21. c4 {[%clk 0:01:54]}  Rae8 {[%clk 0:02:02]} 22. cxd5 {[%clk 0:01:49]}  exd5 {[%clk 0:02:00]} 23. exd5 {[%clk 0:01:47]}  cxd5 {[%clk 0:01:54]} 24. Bf2 {[%clk 0:01:43]}  Qf6 {[%clk 0:01:51]} 25. Bd4 {[%clk 0:01:39]}  Qh4 {[%clk 0:01:50]} 26. Bf2 {[%clk 0:01:34]}  Qf6 {[%clk 0:01:48]} 27. Rxd5 {[%clk 0:01:10]}  b6 {[%clk 0:01:41]} 28. Rd7 {[%clk 0:01:08]}  Rf7 {[%clk 0:01:35]} 29. Rxf7 {[%clk 0:01:05]}  Qxf7 {[%clk 0:01:34]} 30. g4 {[%clk 0:01:06]}  Nf6 {[%clk 0:01:31]} 31. Ng3 {[%clk 0:01:01]}  Rxe1+ {[%clk 0:01:27]} 32. Bxe1 {[%clk 0:01:02]}  Qa2 {[%clk 0:01:24]} 33. f5 {[%clk 0:00:58]}  g5 {[%clk 0:01:24]} 34. Bf2 {[%clk 0:00:54]}  Nd5 {[%clk 0:01:21]} 35. Nh5 {[%clk 0:00:45]}  Be5 {[%clk 0:01:06]} 36. Kg2 {[%clk 0:00:37]}  Bd4 {[%clk 0:00:57]} 37. Kg1 {[%clk 0:00:16]}  Bxf2+ {[%clk 0:00:50]} 38. Qxf2 {[%clk 0:00:17]}  Qxa3 {[%clk 0:00:50]} 39. Qd4 {[%clk 0:00:16]}  Qe3+ {[%clk 0:00:45]} 40. Qxe3 {[%clk 0:00:15]}  Nxe3 {[%clk 0:00:46]} 41. Nf6+ {[%clk 0:00:11]}  Kg7 {[%clk 0:00:44]} 42. Ne8+ {[%clk 0:00:10]}  Kf8 {[%clk 0:00:43]} 43. Nd6 {[%clk 0:00:11]}  Nd5 {[%clk 0:00:42]} 44. Nc8 {[%clk 0:00:09]}  a5 {[%clk 0:00:39]} 45. bxa5 {[%clk 0:00:09]}  bxa5 {[%clk 0:00:39]} 46. Nd6 {[%clk 0:00:09]}  Ke7 {[%clk 0:00:37]} 47. Nc4 {[%clk 0:00:09]}  a4 {[%clk 0:00:35]} 48. Na3 {[%clk 0:00:09]}  Nf4 {[%clk 0:00:34]} 49. Kh2 {[%clk 0:00:07]}  Kd6 {[%clk 0:00:35]} 50. Kg3 {[%clk 0:00:08]}  Ne2+ {[%clk 0:00:34]} 51. Kf3 {[%clk 0:00:07]}  Nd4+ {[%clk 0:00:34]} 52. Ke4 {[%clk 0:00:08]}  Nc6 {[%clk 0:00:31]} 53. Nc4+ {[%clk 0:00:04]}  Kc5 {[%clk 0:00:26]} 54. Na3 {[%clk 0:00:04]}  Kb4 {[%clk 0:00:24]} 55. Nb1 {[%clk 0:00:04]}  Kc5 {[%clk 0:00:23]} 56. Na3 {[%clk 0:00:04]}  Kd6 {[%clk 0:00:23]} 57. Nc4+ {[%clk 0:00:04]}  Ke7 {[%clk 0:00:23]} 58. Na3 {[%clk 0:00:05]}  Nb4 {[%clk 0:00:22]} 59. Kd4 {[%clk 0:00:04]}  Kf6 {[%clk 0:00:20]} 60. Kc4 {[%clk 0:00:04]}  Nc6 {[%clk 0:00:20]} 61. Kd5 {[%clk 0:00:04]}  Nb4+ {[%clk 0:00:19]} 62. Kc4 {[%clk 0:00:05]}  Nc6 {[%clk 0:00:19]} 63. Kd5 {[%clk 0:00:05]}  Ne7+ {[%clk 0:00:19]} 64. Ke4 {[%clk 0:00:05]}  Nc8 {[%clk 0:00:18]} 65. Kd5 {[%clk 0:00:06]}  Nb6+ {[%clk 0:00:18]} 66. Kc5 {[%clk 0:00:06]}  Nd7+ {[%clk 0:00:18]} 67. Kd5 {[%clk 0:00:06]}  Ne5 {[%clk 0:00:19]} 68. Ke4 {[%clk 0:00:06]}  Nf7 {[%clk 0:00:17]} 69. Kd5 {[%clk 0:00:06]}  Ne5 {[%clk 0:00:17]} 70. Ke4 {[%clk 0:00:07]}  Nd7 {[%clk 0:00:17]} 71. Nc4 {[%clk 0:00:07]}  Nc5+ {[%clk 0:00:16]} 72. Kd5 {[%clk 0:00:08]}  Nb3 {[%clk 0:00:17]} 73. Na3 {[%clk 0:00:08]}  Nd2 {[%clk 0:00:16]} 74. Kd4 {[%clk 0:00:08]}  Nf1 {[%clk 0:00:16]} 75. Ke4 {[%clk 0:00:08]}  Nd2+ {[%clk 0:00:16]} 76. Kd3 {[%clk 0:00:08]}  Nf1 {[%clk 0:00:16]} 77. Ke2 {[%clk 0:00:08]}  Ng3+ {[%clk 0:00:15]} 78. Kf3 {[%clk 0:00:09]}  Nxf5 {[%clk 0:00:15]} 79. gxf5 {[%clk 0:00:09]}  Kxf5 {[%clk 0:00:16]} 80. Nc4 {[%clk 0:00:09]}  h5 {[%clk 0:00:16]} 81. Na3 {[%clk 0:00:09]}  g4+ {[%clk 0:00:15]} 82. hxg4+ {[%clk 0:00:09]}  hxg4+ {[%clk 0:00:15]} 83. Kg3 {[%clk 0:00:10]}  Kg5 {[%clk 0:00:16]} 84. Nc4 {[%clk 0:00:11]}  Kh5 {[%clk 0:00:15]} 85. Na3 {[%clk 0:00:11]}  Kg5 {[%clk 0:00:15]} 86. Nc4 {[%clk 0:00:12]}  Kh5 {[%clk 0:00:15]} 87. Na3 {[%clk 0:00:13]}  Kg5 {[%clk 0:00:16]} 1/2-1/2


[Site "https://www.chess.com"]

[Event "Late Titled Tuesday Blitz February 8 2022"]
[White "Weetik, Vjacheslav"]
[Black "Ibarra Jerez, Jose Carlos"]
[WhiteFideId "4153472"]
[BlackFideId "2226332"]
[WhiteElo "2469"]
[BlackElo "2626"]
[Result "1-0"]
[Round "10"]
[TimeControl "180+1"]
[Date "2022.02.08"]
[WhiteClock "0:00:04"]
[BlackClock "0:00:03"]

1. e4 {[%clk 0:03:00]}  c5 {[%clk 0:02:59]} 2. Nf3 {[%clk 0:03:00]}  Nc6 {[%clk 0:02:58]} 3. Bb5 {[%clk 0:03:00]}  e5 {[%clk 0:02:58]} 4. O-O {[%clk 0:02:59]}  Bd6 {[%clk 0:02:57]} 5. c3 {[%clk 0:02:58]}  a6 {[%clk 0:02:57]} 6. Ba4 {[%clk 0:02:53]}  b5 {[%clk 0:02:56]} 7. Bc2 {[%clk 0:02:54]}  Nge7 {[%clk 0:02:56]} 8. a4 {[%clk 0:02:47]}  Rb8 {[%clk 0:02:52]} 9. axb5 {[%clk 0:02:47]}  axb5 {[%clk 0:02:53]} 10. d4 {[%clk 0:02:47]}  cxd4 {[%clk 0:02:53]} 11. cxd4 {[%clk 0:02:48]}  exd4 {[%clk 0:02:54]} 12. Nxd4 {[%clk 0:02:46]}  Nxd4 {[%clk 0:02:54]} 13. Qxd4 {[%clk 0:02:46]}  Qc7 {[%clk 0:02:55]} 14. Nc3 {[%clk 0:02:31]}  Bxh2+ {[%clk 0:02:53]} 15. Kh1 {[%clk 0:02:32]}  Be5 {[%clk 0:02:54]} 16. Qd3 {[%clk 0:02:23]}  b4 {[%clk 0:02:50]} 17. Nd5 {[%clk 0:02:21]}  Nxd5 {[%clk 0:02:48]} 18. exd5 {[%clk 0:02:22]}  b3 {[%clk 0:02:19]} 19. Bb1 {[%clk 0:02:06]}  d6 {[%clk 0:02:12]} 20. Re1 {[%clk 0:01:57]}  Kf8 {[%clk 0:01:59]} 21. Bd2 {[%clk 0:01:45]}  h5 {[%clk 0:01:45]} 22. Ra4 {[%clk 0:01:39]}  g6 {[%clk 0:01:42]} 23. Rxe5 {[%clk 0:00:37]}  dxe5 {[%clk 0:01:41]} 24. Bc3 {[%clk 0:00:19]}  Bf5 {[%clk 0:01:37]} 25. Qe3 {[%clk 0:00:20]}  Re8 {[%clk 0:01:05]} 26. Bxf5 {[%clk 0:00:17]}  gxf5 {[%clk 0:01:06]} 27. Ra7 {[%clk 0:00:17]}  Qd6 {[%clk 0:01:04]} 28. Rb7 {[%clk 0:00:10]}  f4 {[%clk 0:00:27]} 29. Qe4 {[%clk 0:00:06]}  Qg6 {[%clk 0:00:27]} 30. Qxg6 {[%clk 0:00:03]}  fxg6 {[%clk 0:00:27]} 31. d6 {[%clk 0:00:02]}  Kg8 {[%clk 0:00:19]} 32. d7 {[%clk 0:00:02]}  Rd8 {[%clk 0:00:17]} 33. Bxe5 {[%clk 0:00:02]}  Rh7 {[%clk 0:00:17]} 34. Bxf4 {[%clk 0:00:02]}  Rhxd7 {[%clk 0:00:16]} 35. Rxb3 {[%clk 0:00:03]}  Kf7 {[%clk 0:00:12]} 36. Be3 {[%clk 0:00:03]}  Rd3 {[%clk 0:00:12]} 37. Rb7+ {[%clk 0:00:03]}  R8d7 {[%clk 0:00:13]} 38. Rb6 {[%clk 0:00:03]}  R3d5 {[%clk 0:00:12]} 39. Kh2 {[%clk 0:00:03]}  Rf5 {[%clk 0:00:12]} 40. b4 {[%clk 0:00:03]}  Rf6 {[%clk 0:00:13]} 41. Rb8 {[%clk 0:00:03]}  Re6 {[%clk 0:00:10]} 42. Bc5 {[%clk 0:00:03]}  Re8 {[%clk 0:00:10]} 43. Rb6 {[%clk 0:00:03]}  Rd5 {[%clk 0:00:08]} 44. Rb7+ {[%clk 0:00:04]}  Kf6 {[%clk 0:00:09]} 45. Rb6+ {[%clk 0:00:04]}  Kf5 {[%clk 0:00:09]} 46. Rb7 {[%clk 0:00:04]}  Re6 {[%clk 0:00:08]} 47. Rf7+ {[%clk 0:00:04]}  Rf6 {[%clk 0:00:09]} 48. Rc7 {[%clk 0:00:05]}  g5 {[%clk 0:00:09]} 49. Rc8 {[%clk 0:00:05]}  Rf7 {[%clk 0:00:09]} 50. Rh8 {[%clk 0:00:05]}  h4 {[%clk 0:00:09]} 51. Rg8 {[%clk 0:00:04]}  Kg4 {[%clk 0:00:08]} 52. Re8 {[%clk 0:00:02]}  Rd2 {[%clk 0:00:07]} 53. Re4+ {[%clk 0:00:02]}  Kf5 {[%clk 0:00:07]} 54. Re3 {[%clk 0:00:03]}  Rxf2 {[%clk 0:00:05]} 55. Rc3 {[%clk 0:00:02]}  Rb2 {[%clk 0:00:05]} 56. Rf3+ {[%clk 0:00:02]}  Kg6 {[%clk 0:00:05]} 57. Rd3 {[%clk 0:00:03]}  Rb3 {[%clk 0:00:04]} 58. Rxb3 {[%clk 0:00:03]}  Rb7 {[%clk 0:00:04]} 59. b5 {[%clk 0:00:03]}  Kf5 {[%clk 0:00:04]} 60. b6 {[%clk 0:00:04]}  g4 {[%clk 0:00:05]} 61. Kg1 {[%clk 0:00:03]}  Ke4 {[%clk 0:00:05]} 62. Kf1 {[%clk 0:00:04]}  Kd5 {[%clk 0:00:06]} 63. Bf2 {[%clk 0:00:04]}  g3 {[%clk 0:00:05]} 64. Be3 {[%clk 0:00:04]}  Kc4 {[%clk 0:00:04]} 65. Rb1 {[%clk 0:00:04]}  Kd3 {[%clk 0:00:04]} 66. Rb3+ {[%clk 0:00:03]}  Kc2 {[%clk 0:00:05]} 67. Ra3 {[%clk 0:00:03]}  Kb2 {[%clk 0:00:04]} 68. Ra7 {[%clk 0:00:03]}  Rb8 {[%clk 0:00:04]} 69. Rh7 {[%clk 0:00:03]}  Re8 {[%clk 0:00:04]} 70. Ke2 {[%clk 0:00:03]}  Kc3 {[%clk 0:00:03]} 71. Rxh4 {[%clk 0:00:04]} 1-0


[Site "https://www.chess.com"]

[Event "Late Titled Tuesday Blitz February 8 2022"]
[White "Xiong, Jeffery"]
[Black "Indjic, Aleksandar"]
[WhiteFideId "2047640"]
[BlackFideId "911925"]
[WhiteElo "2727"]
[BlackElo "2616"]
[Result "1-0"]
[Round "10"]
[TimeControl "180+1"]
[Date "2022.02.08"]
[WhiteClock "0:00:02"]
[BlackClock "0:00:02"]

1. e4 {[%clk 0:03:00]}  d6 {[%clk 0:03:00]} 2. d4 {[%clk 0:03:00]}  Nf6 {[%clk 0:03:00]} 3. Nc3 {[%clk 0:03:01]}  g6 {[%clk 0:03:01]} 4. Be3 {[%clk 0:03:01]}  c6 {[%clk 0:02:59]} 5. Qd2 {[%clk 0:02:59]}  b5 {[%clk 0:02:58]} 6. f3 {[%clk 0:02:59]}  Nbd7 {[%clk 0:02:56]} 7. a4 {[%clk 0:02:53]}  b4 {[%clk 0:02:54]} 8. Nd1 {[%clk 0:02:52]}  a5 {[%clk 0:02:53]} 9. c3 {[%clk 0:02:50]}  c5 {[%clk 0:02:46]} 10. Bb5 {[%clk 0:02:32]}  Ba6 {[%clk 0:02:35]} 11. Ne2 {[%clk 0:02:30]}  Bxb5 {[%clk 0:02:31]} 12. axb5 {[%clk 0:02:31]}  Qb8 {[%clk 0:01:53]} 13. c4 {[%clk 0:02:29]}  Bg7 {[%clk 0:01:50]} 14. b3 {[%clk 0:02:29]}  O-O {[%clk 0:01:47]} 15. O-O {[%clk 0:02:29]}  Qc7 {[%clk 0:01:46]} 16. Nb2 {[%clk 0:02:24]}  Nb6 {[%clk 0:01:45]} 17. Na4 {[%clk 0:02:22]}  Nfd7 {[%clk 0:01:44]} 18. Nb2 {[%clk 0:01:49]}  Rfd8 {[%clk 0:01:18]} 19. Ra2 {[%clk 0:01:49]}  cxd4 {[%clk 0:01:13]} 20. Nxd4 {[%clk 0:01:50]}  Nc5 {[%clk 0:01:13]} 21. Qd1 {[%clk 0:01:43]}  Bxd4 {[%clk 0:01:08]} 22. Bxd4 {[%clk 0:01:41]}  f6 {[%clk 0:00:22]} 23. Kh1 {[%clk 0:01:41]}  Kf7 {[%clk 0:00:21]} 24. Bg1 {[%clk 0:01:40]}  Nbd7 {[%clk 0:00:20]} 25. Qc2 {[%clk 0:01:34]}  Nb7 {[%clk 0:00:17]} 26. Rfa1 {[%clk 0:01:30]}  Ndc5 {[%clk 0:00:17]} 27. Be3 {[%clk 0:01:20]}  Rac8 {[%clk 0:00:16]} 28. h4 {[%clk 0:01:10]}  e6 {[%clk 0:00:17]} 29. Rd1 {[%clk 0:01:00]}  Nd7 {[%clk 0:00:17]} 30. Na4 {[%clk 0:00:55]}  Ndc5 {[%clk 0:00:17]} 31. Nb2 {[%clk 0:00:51]}  Nd7 {[%clk 0:00:16]} 32. Rd2 {[%clk 0:00:47]}  Ne5 {[%clk 0:00:17]} 33. Qd1 {[%clk 0:00:46]}  Nd7 {[%clk 0:00:11]} 34. Nd3 {[%clk 0:00:40]}  Ndc5 {[%clk 0:00:11]} 35. Nf4 {[%clk 0:00:32]}  Ra8 {[%clk 0:00:11]} 36. Nd3 {[%clk 0:00:20]}  Qe7 {[%clk 0:00:10]} 37. Kg1 {[%clk 0:00:15]}  Qc7 {[%clk 0:00:10]} 38. Ra1 {[%clk 0:00:15]}  Qe7 {[%clk 0:00:10]} 39. Rda2 {[%clk 0:00:16]}  Qc7 {[%clk 0:00:10]} 40. Nf2 {[%clk 0:00:15]}  Rac8 {[%clk 0:00:11]} 41. Ng4 {[%clk 0:00:16]}  Nd7 {[%clk 0:00:11]} 42. Qd4 {[%clk 0:00:14]}  Ne5 {[%clk 0:00:11]} 43. Nf2 {[%clk 0:00:07]}  Nd7 {[%clk 0:00:09]} 44. Ng4 {[%clk 0:00:05]}  Ne5 {[%clk 0:00:09]} 45. Nxe5+ {[%clk 0:00:06]}  dxe5 {[%clk 0:00:09]} 46. Qb6 {[%clk 0:00:07]}  Rd3 {[%clk 0:00:08]} 47. Qxc7+ {[%clk 0:00:07]}  Rxc7 {[%clk 0:00:09]} 48. Bb6 {[%clk 0:00:08]}  Rc8 {[%clk 0:00:09]} 49. Bxa5 {[%clk 0:00:08]}  Rxb3 {[%clk 0:00:10]} 50. Bb6 {[%clk 0:00:09]}  Nd6 {[%clk 0:00:04]} 51. Ra7+ {[%clk 0:00:07]}  Kg8 {[%clk 0:00:05]} 52. Rd7 {[%clk 0:00:07]}  Nxc4 {[%clk 0:00:05]} 53. Bc7 {[%clk 0:00:05]}  Ra3 {[%clk 0:00:04]} 54. Rc1 {[%clk 0:00:03]}  Nb6 {[%clk 0:00:05]} 55. Rd8+ {[%clk 0:00:02]}  Rxd8 {[%clk 0:00:04]} 56. Bxd8 {[%clk 0:00:03]}  b3 {[%clk 0:00:04]} 57. Rb1 {[%clk 0:00:02]}  Nd7 {[%clk 0:00:02]} 58. b6 {[%clk 0:00:02]} 1-0


[Site "https://www.chess.com"]

[Event "Late Titled Tuesday Blitz February 8 2022"]
[White "Yoo, Christopher Woojin"]
[Black "Fier, Alexandr"]
[WhiteFideId "30909694"]
[BlackFideId "2107139"]
[WhiteElo "2105"]
[BlackElo "2569"]
[Result "1-0"]
[Round "10"]
[TimeControl "180+1"]
[Date "2022.02.08"]
[WhiteClock "0:00:04"]
[BlackClock "0:00:45"]

1. e4 {[%clk 0:03:00]}  Nf6 {[%clk 0:03:00]} 2. Nc3 {[%clk 0:02:59]}  d5 {[%clk 0:03:00]} 3. exd5 {[%clk 0:02:59]}  Nxd5 {[%clk 0:03:01]} 4. Bc4 {[%clk 0:03:00]}  c6 {[%clk 0:03:01]} 5. Nf3 {[%clk 0:02:59]}  g6 {[%clk 0:03:01]} 6. O-O {[%clk 0:02:57]}  Bg7 {[%clk 0:03:01]} 7. d4 {[%clk 0:02:57]}  O-O {[%clk 0:03:02]} 8. Bg5 {[%clk 0:02:55]}  Be6 {[%clk 0:03:01]} 9. Qe2 {[%clk 0:02:42]}  Re8 {[%clk 0:02:55]} 10. Rfe1 {[%clk 0:02:34]}  Nc7 {[%clk 0:02:45]} 11. Rad1 {[%clk 0:02:29]}  Bxc4 {[%clk 0:02:41]} 12. Qxc4 {[%clk 0:02:28]}  Nd7 {[%clk 0:02:36]} 13. Qb3 {[%clk 0:02:19]}  Nb6 {[%clk 0:02:36]} 14. a4 {[%clk 0:02:14]}  Rb8 {[%clk 0:02:31]} 15. a5 {[%clk 0:02:14]}  Nbd5 {[%clk 0:02:31]} 16. Ne4 {[%clk 0:02:15]}  h6 {[%clk 0:02:30]} 17. Bh4 {[%clk 0:02:14]}  b6 {[%clk 0:02:26]} 18. axb6 {[%clk 0:02:14]}  axb6 {[%clk 0:02:26]} 19. c4 {[%clk 0:02:10]}  Nf6 {[%clk 0:02:24]} 20. Nxf6+ {[%clk 0:02:10]}  Bxf6 {[%clk 0:02:24]} 21. Bg3 {[%clk 0:02:03]}  Rb7 {[%clk 0:02:21]} 22. Ne5 {[%clk 0:02:01]}  Bxe5 {[%clk 0:02:18]} 23. Bxe5 {[%clk 0:02:01]}  b5 {[%clk 0:02:16]} 24. Qh3 {[%clk 0:01:55]}  h5 {[%clk 0:02:13]} 25. Qe3 {[%clk 0:01:48]}  Kh7 {[%clk 0:02:02]} 26. Qf3 {[%clk 0:01:47]}  f6 {[%clk 0:01:45]} 27. Qxc6 {[%clk 0:01:46]}  Qc8 {[%clk 0:01:45]} 28. Bxf6 {[%clk 0:01:39]}  bxc4 {[%clk 0:01:40]} 29. Rxe7+ {[%clk 0:01:22]}  Rxe7 {[%clk 0:01:39]} 30. Bxe7 {[%clk 0:01:23]}  Rxb2 {[%clk 0:01:39]} 31. Bd6 {[%clk 0:01:23]}  Rb7 {[%clk 0:01:34]} 32. Re1 {[%clk 0:01:22]}  Qe6 {[%clk 0:01:29]} 33. Rf1 {[%clk 0:01:14]}  Ra7 {[%clk 0:01:26]} 34. Qc5 {[%clk 0:01:03]}  Nb5 {[%clk 0:01:21]} 35. Be5 {[%clk 0:00:52]}  Rb7 {[%clk 0:01:19]} 36. Rb1 {[%clk 0:00:21]}  Qf5 {[%clk 0:01:19]} 37. Re1 {[%clk 0:00:15]}  Rf7 {[%clk 0:01:19]} 38. f3 {[%clk 0:00:14]}  Na7 {[%clk 0:00:47]} 39. Qxc4 {[%clk 0:00:13]}  Nc8 {[%clk 0:00:48]} 40. Bg3 {[%clk 0:00:08]}  Ne7 {[%clk 0:00:47]} 41. h4 {[%clk 0:00:05]}  Qd7 {[%clk 0:00:45]} 42. Qxf7+ {[%clk 0:00:04]}  Kh8 {[%clk 0:00:45]} 43. Be5# {[%clk 0:00:04]} 1-0


[Site "https://www.chess.com"]